Cogmind - Beta 14 @@@ ROGUE MODE // 2024.09.29 @ 05:32:44 Player: Cereal Killer Result: Destroyed by H-81 Overseer with Heavy Linear Accelerator Performance ------------- Evolutions (8) 4000 Regions Visited (25) 5000 Robots Destroyed (315) 1575 Value Destroyed (15157) 15157 Prototype IDs (243) 4860 Alien Tech Used (1) 200 Bonus (15555) 15555 TOTAL SCORE: 46347 Bonus ------- High Alert Combat Kills 4912 Follower Combat Kills 2443 Network Hubs Disabled 400 Aligned with FarCom 300 Met Data Miner 300 Used Data Conduit 3000 Met Imprinter 300 Met Zhirov 300 Built Enhanced Grunts 300 A7 Reached Mainframe 300 Met R17 at Cetus 500 Read Decrypted Archives 300 Met R17 at Research 2000 Pursued by Intercept 500 Friendly Fire -300 Cogmind --------- Core Integrity 0/1450 Matter 300/300 Energy 100/100 System Corruption 21% Temperature Cool (0) Movement Flying (20) Location -2/Research Parts ------- > --- POWER (3) -------- (None) > --- PROPULSION (4) --- Experimental Q-thruster > --- UTILITY (11) ----- (None) > --- WEAPON (5) ------- (None) > --- INVENTORY (5) ---- Advanced Coolant Injector Quantum Capacitor Improved Remote Datajack Enhanced Force Lance Peak State ------------ > --- POWER ------------ Light Antimatter Reactor Light Antimatter Reactor Particle Reactor > --- PROPULSION ------- Biometal Heavy Treads Advanced Heavy Siege Treads > --- UTILITY ---------- Advanced Heat Sink Advanced Coolant Injector Large Storage Unit Advanced Energy Well Experimental Signal Interpreter Improved Targeting Computer Core Analyzer Experimental ECM Suite Centrium Light Armor Plating Antimissile System > --- WEAPON ----------- Gamma Rifle Gamma Rifle Enhanced Quantum Rifle Enhanced Quantum Rifle Fusion Bomb Launcher > --- INVENTORY -------- Heavy Treads Advanced Heavy Siege Treads Wheel Experimental Q-thruster Advanced Coolant Injector Advanced Energy Well Quantum Capacitor Linear Accelerator Enhanced Force Lance [Rating: 168] Favorites ----------- Power Cooled Ion Engine Engine Cooled Ion Engine Power Core Neutrino Core Reactor Antimatter Reactor Propulsion Armored Huge Wheel Treads Biometal Heavy Treads Leg Flexi-carbon Leg Wheel Armored Huge Wheel Hover Unit Antigrav System Flight Unit Experimental Q-thruster Utility Large Storage Unit Device Improved Cooling System Storage Large Storage Unit Processor Core Analyzer Hackware Deep Network Scanner Protection Medium Reactive Plating Weapon Force Rifle Energy Gun Force Rifle Energy Cannon Phase Cannon Ballistic Gun Hypervelocity Coil Gun Ballistic Cannon Advanced Assault Cannon Launcher Heavy Missile Launcher Special Weapon Improved Remote Datajack Impact Weapon Impact Mace Slashing Weapon Ripper Piercing Weapon Enhanced Force Lance Build | -11 -10 -10 -10 -9 -8 -7 -7 -7 -7 -6 -6 -6 -6 -6 -5 -5 -5 -5 -5 -5 -5 -5 -4 -3 -2 ------- Run | Yrd Mat Min Exi Min Mat Fac Low Low Zio Pro Fac Low Low Dat Pro Fac Was Fac Ext Cet Arc Hub Fac Res Res Slots Evolved 16 | . . . . . 4 2 . . . . 2 . . . . 2 . . . . . . 2 2 2 Power 2 | . . . . . . . . . . . 1 . . . . . . . . . . . . . 1 Propulsion 2 | . . . . . . . . . . . . . . . . . . . . . . . 2 . . Utility 9 | . . . . . 3 2 . . . . 1 . . . . 1 . . . . . . . 1 1 Weapon 3 | . . . . . 1 . . . . . . . . . . 1 . . . . . . . 1 . Parts Attached 341 | 6 7 5 2 1 56 21 2 7 2 4 36 3 2 6 8 6 3 3 14 7 1 9 73 29 28 Power 43 | 1 . 1 . . 3 2 1 . . . 7 . . 1 1 . 1 1 2 3 . 2 9 5 3 Engine 14 | 1 . 1 . . 1 1 1 . . . 7 . . 1 1 . . . . . . . . . . Core 9 | . . . . . 2 1 . . . . . . . . . . . 1 1 . . . 4 . . Reactor 20 | . . . . . . . . . . . . . . . . . 1 . 1 3 . 2 5 5 3 Propulsion 48 | 2 2 1 . . 9 1 . 1 . . . 1 . . . . . . . . . 1 19 6 5 Treads 18 | . . . . . 1 . . . . . . . . . . . . . . . . . 11 3 3 Leg 1 | . . . . . . . . . . . . . . . . . . . . . . . 1 . . Wheel 23 | 2 2 1 . . 8 1 . 1 . . . 1 . . . . . . . . . 1 3 3 . Hover 4 | . . . . . . . . . . . . . . . . . . . . . . . 4 . . Flight 2 | . . . . . . . . . . . . . . . . . . . . . . . . . 2 Utility 112 | 1 2 . 1 . 16 9 1 4 . 3 11 2 1 3 4 5 1 2 8 2 . 2 19 10 5 Device 64 | . . . . . 8 1 1 3 . 2 9 1 1 2 3 5 . 2 3 . . 1 10 7 5 Storage 10 | 1 1 . 1 . 1 1 . . . . . . . 1 . . . . . . . . 3 1 . Processor 9 | . . . . . 1 2 . . . . 1 1 . . . . . . 1 . . . 3 . . Hackware 1 | . . . . . . . . . . . . . . . . . . . 1 . . . . . . Protection 28 | . 1 . . . 6 5 . 1 . 1 1 . . . 1 . 1 . 3 2 . 1 3 2 . Artifact . | . . . . . . . . . . . . . . . . . . . . . . . . . . Weapon 138 | 2 3 3 1 1 28 9 . 2 2 1 18 . 1 2 3 1 1 . 4 2 1 4 26 8 15 Energy Gun 51 | 1 1 . 1 1 10 4 . . 1 . 6 . . . 2 . . . 1 1 1 1 7 6 7 Energy Cannon 17 | . . . . . 3 . . 1 . . 1 . . . . . . . . . . . 12 . . Ballistic Gun 21 | 1 2 2 . . 6 . . . . . 3 . . . . 1 . . 2 . . 2 1 . 1 Ballistic Cannon 19 | . . . . . 4 2 . 1 . 1 5 . . . 1 . . . . 1 . 1 2 1 . Launcher 10 | . . 1 . . . . . . . . 2 . . 2 . . 1 . . . . . 2 1 1 Special Weapon 1 | . . . . . . . . . . . . . . . . . . . 1 . . . . . . Impact Weapon 10 | . . . . . 5 3 . . . . 1 . . . . . . . . . . . 1 . . Slashing Weapon 1 | . . . . . . . . . . . . . 1 . . . . . . . . . . . . Piercing Weapon 8 | . . . . . . . . . 1 . . . . . . . . . . . . . 1 . 6 Special Melee Weapon . | . . . . . . . . . . . . . . . . . . . . . . . . . . Unidentified Prototypes 11 | . . . . . 3 2 1 . . . 3 . . . . . . . 1 . . . . . 1 Parts Lost 112 | . 2 3 . . 15 1 . 1 . . 10 . . 2 4 . . . 1 . . 13 23 11 26 Power 19 | . . 1 . . 2 . . . . . 1 . . 1 1 . . . . . . 1 4 3 5 Propulsion 18 | . 1 1 . . 4 . . . . . . . . . . . . . . . . 2 6 . 4 Utility 41 | . . . . . 6 1 . . . . 6 . . 1 2 . . . . . . 7 3 4 11 Weapon 34 | . 1 1 . . 3 . . 1 . . 3 . . . 1 . . . 1 . . 3 10 4 6 Highest Loss Streak 13 | . 2 1 . . 9 1 . 1 . . 5 . . 2 2 . . . 1 . . 12 10 8 13 To Critical Strikes . | . . . . . . . . . . . . . . . . . . . . . . . . . . Average Slot Usage (%) 83 | . 77 94 100 100 92 85 80 84 76 85 90 86 86 85 84 92 83 76 76 90 94 86 66 83 82 Engine 6 | . 14 10 14 14 5 6 7 7 7 7 12 13 13 13 11 11 7 3 . . . . . . . Core 1 | . . . . . 3 . . . . . . . . . . . . 1 5 . . . 3 1 . Reactor 1 | . . . . . . . . . . . . . . . . . 3 5 5 10 11 10 3 5 9 Wheel 8 | . 18 27 28 28 15 7 7 7 7 7 6 6 6 6 6 5 5 5 5 5 5 5 1 6 5 Device 15 | . . . . . 15 15 9 11 7 11 26 25 20 22 22 33 24 17 10 17 17 15 18 15 18 Storage 7 | . 14 14 14 14 9 7 7 7 7 7 6 6 6 8 13 11 7 5 5 5 5 4 4 7 7 Processor 9 | . . . . . 2 8 15 15 15 15 12 7 13 6 6 5 5 5 9 11 11 10 8 14 12 Protection 7 | . 1 14 14 14 13 14 9 11 7 11 4 6 6 6 2 . 2 5 5 7 11 10 3 2 3 Energy Gun 8 | . 4 3 7 24 9 8 15 3 3 7 6 20 18 6 13 11 5 5 4 1 2 2 3 13 10 Ballistic Gun 4 | . 22 15 20 3 5 . . . . . 4 . . . . 4 5 5 9 17 17 15 . . . Ballistic Cannon 4 | . . . . . 5 7 . 6 7 8 6 . . . 4 5 5 5 5 3 2 2 2 2 2 Impact Weapon 2 | . . . . . 3 6 7 7 7 5 1 . . . . . . . . . . . . 2 . Peak Build Rating 168 | 6 9 9 11 13 42 53 67 68 70 70 79 73 71 76 72 86 91 94 103 114 114 114 136 137 168 Average Rating 69 | 3 5 7 9 12 29 46 63 61 68 61 70 72 70 71 65 81 87 92 98 108 112 102 87 117 141 On Entrance 60 | . 6 9 8 11 13 38 53 67 68 70 57 72 71 71 71 72 82 91 94 99 112 114 12 78 137 Naked Turns 3 | . . . . . . . . . . . . . . . . . . . . . . 3 . . . Heaviest Build 133 | 12 19 21 30 32 55 78 68 78 75 78 90 86 86 100 91 85 129 131 131 117 111 111 96 108 133 Greatest Support 160 | 26 32 32 32 32 32 28 28 28 28 28 28 28 28 28 28 28 28 28 28 28 28 28 140 145 160 Greatest Overweight (x) 13 | . . 1 . . 13 2 2 2 2 2 3 3 3 3 3 3 4 4 4 4 3 6 5 5 11 Average Overweight (x) 2 | . . . . . 1 1 1 1 2 2 2 3 3 3 2 2 3 4 3 3 3 2 1 2 3 Largest Inventory Capacity 15 | 8 10 10 15 15 15 15 15 15 15 15 15 15 15 15 15 15 15 15 15 15 15 15 15 15 15 Average Capacity 14 | 6 8 10 10 15 15 15 15 15 15 15 15 15 15 15 15 15 15 15 15 15 15 14 8 15 14 Most Carried 15 | 5 10 10 10 13 15 15 15 15 15 15 15 15 15 15 15 15 15 15 15 15 15 15 15 15 15 Average Carried 13 | 2 5 9 9 12 14 14 14 14 14 14 14 14 14 14 14 14 14 14 14 14 15 14 7 13 13 Final Capacity 15 | 8 10 10 15 15 15 15 15 15 15 15 15 15 15 15 15 15 15 15 15 15 15 5 15 15 5 Final Carried 15 | 2 10 10 10 13 15 15 15 15 15 15 15 15 15 14 15 15 15 15 15 15 15 5 15 15 5 Class Distribution -------------------- 34% | Mutant 17% | Scavenger-Tank 9% | Tank 8% | Scavenger-Mutant 5% | Hacker-Gunner 5% | Scavenger-Gunner 4% | Skirmisher 3% | Gunner Dominant Class ---------------- Mutant | -10/Materials Mutant | -10/Mines Scavenger-Mutant | -10/Exiles Mutant | -9/Mines Scavenger-Tank | -8/Materials Mutant | -7/Factory Mutant | -7/Lower Caves Mutant | -7/Lower Caves Mutant | -7/Zion Mutant | -6/Proximity Caves Tank | -6/Factory Scavenger-Tank | -6/Lower Caves Tank | -6/Lower Caves Scavenger-Mutant | -6/Data Miner Gunner | -5/Proximity Caves Infiltrator-Tank | -5/Factory Tank | -5/Waste Infiltrator-Tank | -5/Factory Hacker-Gunner | -5/Extension Hacker-Gunner | -5/Cetus Scavenger-Tank | -5/Archives Scavenger-Tank | -5/Hub_04(d) Mutant | -4/Factory Scavenger-Gunner | -3/Research Scavenger-Tank | -2/Research Resources | -11 -10 -10 -10 -9 -8 -7 -7 -7 -7 -6 -6 -6 -6 -6 -5 -5 -5 -5 -5 -5 -5 -5 -4 -3 -2 ----------- Run | Yrd Mat Min Exi Min Mat Fac Low Low Zio Pro Fac Low Low Dat Pro Fac Was Fac Ext Cet Arc Hub Fac Res Res Matter Collected 10113 | 192 204 253 . 20 1147 320 843 639 401 494 1056 104 20 108 203 . 249 392 930 240 2 231 865 545 655 Remotely . | . . . . . . . . . . . . . . . . . . . . . . . . . . Salvage Created 17551 | . 481 203 . . 2219 802 400 449 . 284 1370 225 215 206 334 . 1348 705 1186 422 5 647 3367 1271 1412 Parts 737 | . 34 12 . . 116 33 10 17 . 9 64 7 7 6 9 . 25 23 76 26 . 25 122 56 60 Haulers Intercepted 16 | . 1 . . . 3 4 . . . . 1 . . . . . . . . . . 1 4 1 1 Recyclers Shooed 10 | . . 2 . . 3 . . . . . 1 . . . . . . 2 1 . . . 1 . . Parts Field Recycled . | . . . . . . . . . . . . . . . . . . . . . . . . . . Retrieved Matter . | . . . . . . . . . . . . . . . . . . . . . . . . . . Parts Self-Destructed 64 | . . . . . . . 7 11 4 15 . 12 7 . 8 . . . . . . . . . . Prevented 17 | . . . . . . . 5 8 . . . 2 . . 2 . . . . . . . . . . Kills | -11 -10 -10 -10 -9 -8 -7 -7 -7 -7 -6 -6 -6 -6 -6 -5 -5 -5 -5 -5 -5 -5 -5 -4 -3 -2 ------- Run | Yrd Mat Min Exi Min Mat Fac Low Low Zio Pro Fac Low Low Dat Pro Fac Was Fac Ext Cet Arc Hub Fac Res Res Combat Hostiles Destroyed 253 | . 9 14 . . 42 11 1 3 . 5 31 3 3 3 5 . 5 6 15 5 . 5 42 20 25 Melee 15 | . . . . . 2 2 . 1 . . . . 1 . . . . . . . . . 4 . 5 Guns 109 | . 9 4 . . 16 1 1 2 . 1 9 1 2 . 2 . 2 3 13 5 . 2 16 8 12 Cannons 55 | . . . . . 11 2 . . . 4 4 . . . . . 3 2 2 . . 2 12 10 3 AOE 55 | . . 10 . . 10 4 . . . . 16 . . 2 2 . . 1 . . . . 4 2 4 Classes Destroyed 23 | . 5 1 . . 10 1 1 . . 1 . . . . . . 1 . 2 . . . 1 . . Worker 17 | . . . . . 6 1 . . . . 4 . . . . . . 1 . . . . 3 . 2 Builder 13 | . . . . . 6 . . . . . 4 . . . . . . . . . . . . 3 . Tunneler 5 | . . . . . 1 . . . . . 1 . . . . . . . . . . 1 1 1 . Hauler 16 | . 1 . . . 3 4 . . . . 1 . . . . . . . . . . 1 4 1 1 Recycler 7 | . 1 1 . . 1 1 . . . . . . . . . . . 2 . . . 1 . . . Carrier 1 | . . . . . . . . . . . . . . . . . . . 1 . . . . . . Operator 4 | . . . . . 2 . . . . . . . . . . . . . 2 . . . . . . Drone 1 | . . . . . . . . . . 1 . . . . . . . . . . . . . . . Watcher 12 | . 1 . . . 3 3 . . . . 1 . . . . . . . 1 1 . . 1 . 1 Swarmer 33 | . 3 3 . . 4 . . . . 3 6 . . . . . . . 3 . . . . 2 9 Saboteur 2 | . . . . . . . . . . . . . . . . . . . . . . . 2 . . Grunt 105 | . 6 2 . . 26 7 . . . 1 16 1 2 . 1 . . 1 2 . . 2 19 17 2 Brawler 5 | . . . . . 1 . . . . . 2 . 1 . . . . . . . . . 1 . . Duelist 9 | . . . . . 2 1 . . . . 1 . . . 2 . . 1 . . . . 2 . . Protector 1 | . . . . . . . . . . . . . . . . . . . 1 . . . . . . Sentry 28 | . . . . . 5 . . 1 . . 1 . . . 1 . . 4 7 . . 3 6 . . Specialist 6 | . . . . . 2 . . . . . . . . . . . . . . . . . 2 . 2 Hunter 12 | . . . . . 1 1 . 1 . . 1 2 . . . . . . . . . . 2 1 3 Programmer 20 | . . . . . . 2 . 1 . . 2 . . . . . . . 2 . . . 7 . 6 Heavy 4 | . . . . . 1 . . . . . 2 . . . . . . . . . . . 1 . . Behemoth 2 | . . . . . . . 1 . . . . . . . 1 . . . . . . . . . . Compactor 5 | . . . . . . . . . . . . . . . . . 5 . . . . . . . . Cetus Guard 5 | . . . . . . . . . . . . . . . . . . . . 5 . . . . . Enhanced Grunt 3 | . . . . . . . . . . . . . . 3 . . . . . . . . . . . Tracker 2 | . . . . . . . . . . . . . . . . . . . . . . . . . 2 Combat Programmer 1 | . . . . . . . . . . . . . . . . . . . . . . . . . 1 Decomposer 1 | . . . . . . . . . . 1 . . . . . . . . . . . . . . . Packrat 5 | . . . . . . . 3 2 . . . . . . . . . . . . . . . . . Assembled 9 | . . 9 . . . . . . . . . . . . . . . . . . . . . . . Best Kill Streak 17 | . 6 3 . . 13 4 1 1 . 1 17 1 2 3 2 . 4 4 2 4 . 5 12 10 5 Combat Bots Only 15 | . 6 3 . . 9 4 1 1 . 1 15 1 2 3 2 . 4 2 2 3 . 4 10 8 5 Max Kills in Single Turn 5 | . 2 2 . . 5 3 1 1 . 1 5 1 1 1 2 . 1 2 1 2 . 2 3 3 2 Gunslinging 1 | . . . . . . . . . . . . . . . . . . . . 1 . . 1 . 1 Exploded 5 | . . 2 . . 3 3 . . . . 5 . . 1 2 . . 1 . . . . 1 1 2 Melee 1 | . . . . . 1 1 . 1 . . . . 1 . . . . . . . . . 1 . 1 Uniques/NPCs Destroyed 1 | . . . . . . . . . . . . . . 1 . . . . . . . . . . . Data Miner (-6/Data Miner) Combat | -11 -10 -10 -10 -9 -8 -7 -7 -7 -7 -6 -6 -6 -6 -6 -5 -5 -5 -5 -5 -5 -5 -5 -4 -3 -2 -------- Run | Yrd Mat Min Exi Min Mat Fac Low Low Zio Pro Fac Low Low Dat Pro Fac Was Fac Ext Cet Arc Hub Fac Res Res Hostile Shots Fired 2086 | . 36 41 . . 175 56 35 53 . 48 124 20 27 27 28 . . 42 76 5 3 94 497 278 421 Missed 638 | . 10 13 . . 62 22 14 22 . 15 43 4 4 11 9 . . 9 27 1 1 33 150 62 126 Damage Taken 27498 | . 290 395 . . 2173 782 226 241 . 363 1426 147 207 555 548 . . 619 768 109 672 2033 6818 3125 6001 Core 4148 | . 33 60 . . 432 118 69 5 . 90 94 19 19 69 96 . . 30 14 15 . 548 696 273 1468 Absorbed by Shields 3355 | . . . . . 72 . . 79 . 139 420 153 213 160 . . . 200 279 39 154 97 403 . 947 Reduced by Siege Mode 1108 | . . . . . . . . . . . . . . . . . . . . . . . 883 225 . Redirected to Shielding 278 | . . 20 . . 244 . . . . . . . . . 14 . . . . . . . . . . Ignored by Resistances 557 | . . . . . . 39 . 37 . 88 148 . . . . . . . 55 . . . 190 . . Core Remaining (%) 51 | 100 . . . 62 21 . . . . 59 . . . . 16 . . . . . . 39 39 79 . Volleys Fired 710 | . 21 33 . 1 106 35 8 14 . 22 78 11 11 7 16 . 19 16 59 20 2 17 105 36 73 Largest 5 | . 2 2 . 2 3 3 2 2 . 3 3 3 3 3 3 . 4 4 4 3 4 4 4 5 5 Hottest 375 | . 60 85 . 110 164 144 105 105 . 177 199 221 221 165 221 . 215 215 211 105 166 240 327 362 375 Shots Fired 1681 | . 41 59 . 2 260 71 13 28 . 47 194 33 25 17 40 . 57 49 163 44 5 50 222 112 149 Gun 1141 | . 41 47 . 2 169 46 13 21 . 22 113 33 25 4 33 . 35 32 114 44 3 39 107 78 120 Cannon 471 | . . . . . 91 25 . 7 . 25 71 . . . 5 . 19 16 47 . 2 11 99 32 21 Launcher 67 | . . 12 . . . . . . . . 10 . . 13 2 . 3 1 . . . . 16 2 8 Special 2 | . . . . . . . . . . . . . . . . . . . 2 . . . . . . Kinetic 782 | . 29 34 . . 140 25 . 7 . 25 117 . . . 5 . 38 32 127 36 5 45 50 31 36 Thermal 602 | . . 13 . 1 51 . . . . 22 67 33 25 4 33 . 16 16 34 8 . 5 107 73 94 Explosive 44 | . . 12 . . . . . . . . 10 . . 6 2 . 3 1 . . . . . 2 8 Electromagnetic 251 | . 12 . . 1 69 46 13 21 . . . . . 7 . . . . . . . . 65 6 11 Robot Hit Streak 52 | . 4 6 . 5 16 6 10 10 . 9 7 10 5 6 9 . 11 8 12 9 5 15 52 38 13 Robot Miss Streak 10 | . 3 4 . 1 10 4 1 3 . 5 6 3 4 4 2 . 2 2 5 2 1 2 3 1 5 Penetration Max 1 | . . . . . . . . . . . . . . . . . . 1 1 1 . 1 . . . Secondary Targets 9 | . 1 . . . 1 . . . . . . . 1 . . . . . . 2 . . 3 . 1 Max Gunslinging Chain 1 | . 1 . . . 1 . . . . . . . 1 . . . . . . 1 . . 1 . 1 Capacitor 18 | . . . . . . . . . . . . . . . . . . . . . . . . . 18 Shots Hit Robots 1112 | . 23 25 . 1 184 48 18 31 . 26 105 19 20 10 27 . 40 31 86 28 3 31 180 69 107 Core Hits 657 | . 17 25 . . 111 19 5 13 . 9 79 2 8 13 12 . 9 18 44 14 1 20 123 51 64 Critical Kills 36 | . 1 . . . 2 . . . . . 1 . . . . . 4 5 14 4 . 4 1 . . Critical Parts Destroyed 73 | . 1 . . . 5 5 1 1 . 1 1 2 1 . 2 . 3 6 24 7 . 13 . . . Critical Strikes 157 | . 3 1 . . 13 6 1 1 . 2 3 6 1 . 4 . 16 13 40 14 . 17 8 5 3 Burn 15 | . . 1 . . 4 . . . . . 1 4 . . 2 . . . . . . . 1 1 1 Meltdown 2 | . . . . . . . . . . . 1 . . . . . . . . . . . 1 . . Destroy 108 | . 2 . . . 1 . . . . . . 2 1 . 2 . 16 13 40 14 . 17 . . . Blast 10 | . . . . . 1 1 . . . 1 . . . . . . . . . . . . 2 4 1 Corrupt 2 | . 1 . . . . . . . . . . . . . . . . . . . . . 1 . . Smash 16 | . . . . . 7 5 1 1 . 1 1 . . . . . . . . . . . . . . Impale 4 | . . . . . . . . . . . . . . . . . . . . . . . 3 . 1 Melee Attacks 148 | . . . . . 34 22 6 15 . 4 11 . 7 1 . . . . . . . . 21 3 24 Impact 97 | . . . . . 34 22 6 15 . 4 11 . . . . . . . . . . . 2 3 . Slashing 8 | . . . . . . . . . . . . . 7 1 . . . . . . . . . . . Piercing 43 | . . . . . . . . . . . . . . . . . . . . . . . 19 . 24 Sneak Attacks 27 | . . . . . 9 5 3 2 . 1 2 . . 1 . . . . . . . . . . 4 Combat Hostiles 3 | . . . . . 1 . . . . . . . . . . . . . . . . . . . 2 Follow-up Attacks . | . . . . . . . . . . . . . . . . . . . . . . . . . . Damage Inflicted 40900 | . 296 801 . 17 6416 2484 766 998 . 1104 5605 425 489 1145 854 . 964 764 1311 227 27 958 6946 2899 5404 Guns 15045 | . 296 310 . 17 1792 403 156 168 . 207 1456 425 368 33 574 . 440 336 814 227 14 263 2474 1447 2825 Cannons 8436 | . . . . . 1546 291 . 112 . 435 1176 . . . 54 . 268 233 497 . 13 134 2036 961 680 Explosions 11518 | . . 491 . . 1738 771 56 . . . 2692 . . 1028 226 . 256 195 . . . 561 1755 491 1258 Melee 5901 | . . . . . 1340 1019 554 718 . 462 281 . 121 84 . . . . . . . . 681 . 641 Ramming . | . . . . . . . . . . . . . . . . . . . . . . . . . . Kinetic 10292 | . 206 142 . . 1876 291 . 112 . 435 1614 . . . 54 . 365 314 922 227 27 397 1251 926 1133 Thermal 13918 | . . 168 . . 2352 771 56 . . 207 1615 425 368 33 574 . 343 255 389 . . . 2807 1399 2156 Explosive 5791 | . . 491 . . . . . . . . 2095 . . 779 226 . 256 195 . . . . . 491 1258 Electromagnetic 4998 | . 90 . . 17 848 403 156 168 . . . . . 249 . . . . . . . 561 2207 83 216 Impact 4374 | . . . . . 1340 1019 554 718 . 462 281 . . . . . . . . . . . . . . Slashing 205 | . . . . . . . . . . . . . 121 84 . . . . . . . . . . . Piercing 1322 | . . . . . . . . . . . . . . . . . . . . . . . 681 . 641 Highest Corruption 21 | . . . . . . . . 1 1 . . . . . . . . . . . . 20 4 . 21 Average Corruption 2 | . . . . . . . . 1 1 . . . . . . . . . . . . 8 3 . 6 Corruption Purged . | . . . . . . . . . . . . . . . . . . . . . . . . . . Corruption Blocked . | . . . . . . . . . . . . . . . . . . . . . . . . . . Effects 43 | . . . . . . . . 5 . . . . . . . . . . . . . 3 16 . 19 Message Errors 10 | . . . . . . . . 2 . . . . . . . . . . . . . 1 5 . 2 Matter Fused 8 | . . . . . . . . . . . . . . . . . . . . . . 1 3 . 4 Heat Flow Errors 7 | . . . . . . . . 1 . . . . . . . . . . . . . . 2 . 4 Energy Discharges 3 | . . . . . . . . 2 . . . . . . . . . . . . . . . . 1 Parts Rejected 3 | . . . . . . . . . . . . . . . . . . . . . . 1 1 . 1 Data Loss (minor) 2 | . . . . . . . . . . . . . . . . . . . . . . . 1 . 1 Alerts 2 | . . . . . . . . . . . . . . . . . . . . . . . 2 . . Misdirections 4 | . . . . . . . . . . . . . . . . . . . . . . . . . 4 Weapon Failures 4 | . . . . . . . . . . . . . . . . . . . . . . . 2 . 2 Overload Shots 1 | . . . . . . . . . . . . . . . . . . . . . . 1 . . . Overflow Damage 2707 | . . 5 . . 836 568 308 289 . 259 222 . . 10 . . . . 1 . . 48 86 44 31 Projectiles 121 | . . . . . 41 21 . . . 6 . . . . . . . . 1 . . . . 44 8 Explosions 308 | . . 5 . . 98 32 . . . . 38 . . 10 . . . . . . . 48 54 . 23 Melee 2278 | . . . . . 697 515 308 289 . 253 184 . . . . . . . . . . . 32 . . Knockbacks 71 | . . . . . 20 9 1 3 . 6 7 . . . . . . . 4 . . 2 3 8 8 Impact 13 | . . . . . 5 4 1 3 . . . . . . . . . . . . . . . . . Kinetic 50 | . . . . . 13 5 . . . 5 7 . . . . . . . 4 . . 2 2 5 7 Secondary 8 | . . . . . 2 . . . . 1 . . . . . . . . . . . . 1 3 1 Self-Inflicted Damage 960 | . . . . . 275 244 . . . . 57 . . . . . . 57 . . . 182 10 . 135 Shots 18 | . . . . . 5 3 . . . . 1 . . . . . . 1 . . . 2 2 . 4 Rammed . | . . . . . . . . . . . . . . . . . . . . . . . . . . Targets Rammed . | . . . . . . . . . . . . . . . . . . . . . . . . . . Kicked . | . . . . . . . . . . . . . . . . . . . . . . . . . . Crushed . | . . . . . . . . . . . . . . . . . . . . . . . . . . Highest Temperature 364 | . 36 98 . 48 276 40 90 167 . 125 268 337 333 . 90 . 324 303 364 . . 80 198 315 180 Average Temperature 93 | . 21 46 . 26 65 28 45 89 . 56 57 135 144 . 37 . 161 138 124 . . 41 84 88 73 Received Heat Transfer 4460 | . 126 57 . . 879 144 18 24 . 86 162 33 88 . 63 . . 157 147 6 12 80 1669 529 180 Effects 4 | . . . . . . . . . . . . . . . . . . 2 2 . . . . . . Shutdowns 1 | . . . . . . . . . . . . . . . . . . . 1 . . . . . . Interference 3 | . . . . . . . . . . . . . . . . . . 2 1 . . . . . . Siege Activations 4 | . . . . . . . . . . . . . . . . . . . . . . . 3 1 . Total Turns 157 | . . . . . . . . . . . . . . . . . . . . . . . 108 49 . Longest Duration 78 | . . . . . . . . . . . . . . . . . . . . . . . 78 49 . Robots Corrupted 22 | . . . . . 6 4 . 2 . . . . . 1 . . . . . . . 1 7 . 1 Combat Hostiles 15 | . . . . . 3 2 . 1 . . . . . 1 . . . . . . . 1 6 . 1 Parts Fried 44 | . . . . . 8 10 . . . . 5 . . 1 . . . . . . . 5 15 . . Impact Corruptions 62 | . . . . . 20 16 6 8 . 7 5 . . . . . . . . . . . . . . Robots Melted 6 | . . . . . . . . . . . 2 2 . . 1 . . . . . . . 1 . . Combat Hostiles 5 | . . . . . . . . . . . 2 2 . . 1 . . . . . . . . . . Parts Melted 42 | . . . . . 2 . . . . . 12 5 . . 3 . . . . . . . 10 4 6 Heat Transferred 19529 | . . 444 . . 3308 450 50 . . 333 1900 999 592 74 962 . 481 370 555 . . . 4216 2223 2572 Parts Sabotaged 4 | . . . . . . . . . . . . . . . . . . . . . . . 4 . . Parts Stolen 1 | . . . . . . . . . . . . . 1 . . . . . . . . . . . . Parts Stripped . | . . . . . . . . . . . . . . . . . . . . . . . . . . Power Chain Reactions 9 | . . . . . 3 1 1 . . . . . . . . . . . . . . . 4 . . Alert | -11 -10 -10 -10 -9 -8 -7 -7 -7 -7 -6 -6 -6 -6 -6 -5 -5 -5 -5 -5 -5 -5 -5 -4 -3 -2 ------- Run | Yrd Mat Min Exi Min Mat Fac Low Low Zio Pro Fac Low Low Dat Pro Fac Was Fac Ext Cet Arc Hub Fac Res Res Peak Influence 1430 | . 283 152 . . 1115 733 . . . . 1310 . . . . . 56 380 952 825 591 940 1430 1114 1335 Initial 706 | . . 31 . . . 506 . . . . 463 . . . . . . 39 186 532 250 206 445 706 626 Average 564 | . 154 86 . . 599 539 . . . . 788 . . . . . 47 191 423 661 430 371 772 898 914 Maximum Alert Level 4 | . 1 . . . 4 3 . . . . 4 . . . . . . 1 3 3 2 3 4 4 4 Low Security (%) 17 | 100 48 100 . 100 21 . . . . . . . . . . 100 100 49 9 . . . . . . Level 1 14 | . 51 . . . 4 18 . . . . 9 . . . . . . 50 36 . 39 77 8 . . Level 2 32 | . . . . . 22 78 . . . . 25 . . . . . . . 42 88 60 . 39 3 27 Level 3 26 | . . . . . 48 3 . . . . 48 . . . . . . . 11 12 . 22 29 62 42 Level 4 8 | . . . . . 2 . . . . . 16 . . . . . . . . . . . 23 34 29 Level 5 . | . . . . . . . . . . . . . . . . . . . . . . . . . . High Security . | . . . . . . . . . . . . . . . . . . . . . . . . . . Max Security . | . . . . . . . . . . . . . . . . . . . . . . . . . . Squads Dispatched 70 | . . . . . 7 3 . . . . 14 . . . . . . 3 9 . . 5 15 5 9 Investigation 11 | . . . . . 3 1 . . . . 1 . . . . . . . 1 . . 1 1 3 . Extermination 10 | . . . . . . 2 . . . . 2 . . . . . . . . . . 1 4 . 1 Reinforcement 25 | . . . . . 4 . . . . . 7 . . . . . . . 4 . . 2 3 2 3 Assault 14 | . . . . . . . . . . . 3 . . . . . . . 4 . . 1 4 . 2 Garrison 7 | . . . . . . . . . . . 1 . . . . . . 3 . . . . 3 . . Intercept 3 | . . . . . . . . . . . . . . . . . . . . . . . . . 3 Searches Triggered 1 | . . . . . . . . . . . 1 . . . . . . . . . . . . . . Construction Impeded 8 | . . . . . 1 . . . . . 3 . . . . . . . 3 . . 1 . . . Haulers Reinforced 2 | . . . . . . . . . . . 1 . . . . . . . . . . . . 1 . Active Scanning Responses . | . . . . . . . . . . . . . . . . . . . . . . . . . . Cargo Convoy Interrupts 1 | . . . . . . . . . . . 1 . . . . . . . . . . . . . . Stealth | -11 -10 -10 -10 -9 -8 -7 -7 -7 -7 -6 -6 -6 -6 -6 -5 -5 -5 -5 -5 -5 -5 -5 -4 -3 -2 --------- Run | Yrd Mat Min Exi Min Mat Fac Low Low Zio Pro Fac Low Low Dat Pro Fac Was Fac Ext Cet Arc Hub Fac Res Res Distress Signals 23 | . 2 . . . 7 1 . . . . . . . . . . . . 1 2 . 2 1 5 2 Communications Jammed 17 | . . . . . . . . . . . . . . . . . . 2 . . . . 15 . . Distress Signals 11 | . . . . . . . . . . . . . . . . . . 2 . . . . 9 . . Times Spotted 440 | . 12 15 . . 64 17 3 3 . 15 48 3 5 4 5 . 5 8 45 10 14 18 65 31 50 Peak Tracking Total 16 | . 7 3 . . 9 4 1 1 . 6 9 1 3 3 3 . 2 3 9 5 16 11 9 14 12 Tactical Retreats 33 | . 1 1 . . 10 . 1 . . 1 1 . . . . . 1 . 6 . . 2 4 1 4 Traps | -11 -10 -10 -10 -9 -8 -7 -7 -7 -7 -6 -6 -6 -6 -6 -5 -5 -5 -5 -5 -5 -5 -5 -4 -3 -2 ------- Run | Yrd Mat Min Exi Min Mat Fac Low Low Zio Pro Fac Low Low Dat Pro Fac Was Fac Ext Cet Arc Hub Fac Res Res Traps Triggered 14 | . . . . . . . . . . . . . . . . 1 . . 10 . . . 2 . 1 Indirectly . | . . . . . . . . . . . . . . . . . . . . . . . . . . Trap Hack Attempts . | . . . . . . . . . . . . . . . . . . . . . . . . . . Triggered . | . . . . . . . . . . . . . . . . . . . . . . . . . . Disarmed . | . . . . . . . . . . . . . . . . . . . . . . . . . . Reprogrammed . | . . . . . . . . . . . . . . . . . . . . . . . . . . Reused . | . . . . . . . . . . . . . . . . . . . . . . . . . . Traps Extracted . | . . . . . . . . . . . . . . . . . . . . . . . . . . Installed . | . . . . . . . . . . . . . . . . . . . . . . . . . . Triggered 5 | . . . . . . . . 1 . . . . . . 3 . . . . . . . . . 1 Most Traps Carried 1 | . . . . . . . . . . . . . . . 1 . . . . . . . . . . Machines | -11 -10 -10 -10 -9 -8 -7 -7 -7 -7 -6 -6 -6 -6 -6 -5 -5 -5 -5 -5 -5 -5 -5 -4 -3 -2 ---------- Run | Yrd Mat Min Exi Min Mat Fac Low Low Zio Pro Fac Low Low Dat Pro Fac Was Fac Ext Cet Arc Hub Fac Res Res Machines Disabled 69 | . . 2 . . 4 13 . 1 . . 17 . . . . . . 2 4 1 1 14 6 1 3 Max in Single Turn 9 | . . 1 . . 2 7 . 1 . . 8 . . . . . . 2 1 1 . 9 2 1 1 Garrison Access 4 | . . . . . . . . . . . 2 . . . . . . . . . . . . 1 1 Network Hub 2 | . . . . . . . . . . . . . . . . . . . . . . 2 . . . Machines Repaired . | . . . . . . . . . . . . . . . . . . . . . . . . . . Machines Dismantled . | . . . . . . . . . . . . . . . . . . . . . . . . . . Machines Sabotaged . | . . . . . . . . . . . . . . . . . . . . . . . . . . Overloaded Fab Kills . | . . . . . . . . . . . . . . . . . . . . . . . . . . Hacking | -11 -10 -10 -10 -9 -8 -7 -7 -7 -7 -6 -6 -6 -6 -6 -5 -5 -5 -5 -5 -5 -5 -5 -4 -3 -2 --------- Run | Yrd Mat Min Exi Min Mat Fac Low Low Zio Pro Fac Low Low Dat Pro Fac Was Fac Ext Cet Arc Hub Fac Res Res Machines Accessed 82 | . 6 . 2 . 9 8 1 4 . . 10 1 . 4 . . . 1 17 3 1 5 6 2 2 Terminals 51 | . 6 . . . 8 3 . . . . 2 . . . . . . 1 17 3 . 5 3 2 1 Fabricators 4 | . . . . . . 2 . . . . 1 . . . . . . . . . . . 1 . . Repair Stations 2 | . . . . . . 2 . . . . . . . . . . . . . . . . . . . Recycling Units 5 | . . . . . . 1 . . . . 2 . . . . . . . . . . . 2 . . Scanalyzers 4 | . . . . . 1 . . . . . 3 . . . . . . . . . . . . . . Garrison Access 3 | . . . . . . . . . . . 2 . . . . . . . . . . . . . 1 Total Hacks 250 | . 17 . 2 . 36 21 1 10 . . 18 1 . 27 . . . 2 27 7 25 15 26 5 10 Successful 151 | . 11 . 2 . 14 7 1 10 . . 7 1 . 27 . . . 1 15 6 25 9 10 4 1 Failed 97 | . 5 . . . 21 14 . . . . 11 . . . . . . 1 12 1 . 6 16 1 9 Catastrophic 16 | . . . . . 1 3 . . . . 2 . . . . . . . 2 . . . 5 1 2 Database Lockouts 2 | . 1 . . . 1 . . . . . . . . . . . . . . . . . . . . Manual 63 | . 12 . 1 . 11 4 . . . . 5 . . . . . . . 8 1 . 8 8 2 3 Terminals 124 | . 17 . . . 28 7 . . . . 4 . . . . . . 2 27 7 . 15 9 5 3 Fabricators 12 | . . . . . . 7 . . . . 1 . . . . . . . . . . . 4 . . Repair Stations 5 | . . . . . . 5 . . . . . . . . . . . . . . . . . . . Recycling Units 20 | . . . . . . 2 . . . . 5 . . . . . . . . . . . 13 . . Scanalyzers 13 | . . . . . 8 . . . . . 5 . . . . . . . . . . . . . . Garrison Access 10 | . . . . . . . . . . . 3 . . . . . . . . . . . . . 7 Terminal Hacks 113 | . 9 . 2 . 8 2 1 10 . . 1 1 . 27 . . . 1 12 6 25 5 . 3 . Record 51 | . . . 1 . 1 . . 8 . . . . . 11 . . . . . 5 25 . . . . Part Schematic 10 | . . . . . . . . . . . . . . 10 . . . . . . . . . . . Robot Schematic 5 | . . . . . . 1 . . . . . . . 3 . . . . 1 . . . . . . Robot Analysis 6 | . 5 . . . 1 . . . . . . . . . . . . . . . . . . . . Prototype ID Bank 9 | . 2 . . . 3 . . . . . . . . 3 . . . . . . . . . 1 . Open Door 16 | . . . . . . . 1 2 . . . 1 . . . . . 1 10 1 . . . . . Level Access Points 1 | . . . . . . . . . . . . . . . . . . . . . . 1 . . . Branch Access Points 1 | . . . . . . . . . . . 1 . . . . . . . . . . . . . . Emergency Access Points 2 | . . . . . . . . . . . . . . . . . . . . . . 1 . 1 . Alert Level 2 | . . . . . 1 . . . . . . . . . . . . . . . . 1 . . . Locate Traps 3 | . . . . . 1 1 . . . . . . . . . . . . . . . 1 . . . Hauler Manifests 1 | . . . . . . . . . . . . . . . . . . . . . . . . 1 . Registered Prototypes 1 | . . . . . . . . . . . . . . . . . . . . . . 1 . . . Zone Layout 4 | . 2 . . . 1 . . . . . . . . . . . . . 1 . . . . . . Derelict Proto ID Bank 1 | . . . 1 . . . . . . . . . . . . . . . . . . . . . . Fabricator Hacks 4 | . . . . . . 2 . . . . 1 . . . . . . . . . . . 1 . . Network Status 1 | . . . . . . 1 . . . . . . . . . . . . . . . . . . . Load Schematic 1 | . . . . . . 1 . . . . . . . . . . . . . . . . . . . Build 2 | . . . . . . . . . . . 1 . . . . . . . . . . . 1 . . Repair Station Hacks 1 | . . . . . . 1 . . . . . . . . . . . . . . . . . . . Scan Component 1 | . . . . . . 1 . . . . . . . . . . . . . . . . . . . Recycling Unit Hacks 6 | . . . . . . . . . . . . . . . . . . . . . . . 6 . . Process 1 | . . . . . . . . . . . . . . . . . . . . . . . 1 . . Report Inventory 2 | . . . . . . . . . . . . . . . . . . . . . . . 2 . . Retrieve Matter 1 | . . . . . . . . . . . . . . . . . . . . . . . 1 . . Retrieve Components 2 | . . . . . . . . . . . . . . . . . . . . . . . 2 . . Scanalyzer 7 | . . . . . 3 . . . . . 4 . . . . . . . . . . . . . . Insert Component 4 | . . . . . 1 . . . . . 3 . . . . . . . . . . . . . . Analyze 3 | . . . . . 2 . . . . . 1 . . . . . . . . . . . . . . Garrison Access Hacks 2 | . . . . . . . . . . . 1 . . . . . . . . . . . . . 1 Seal Access 2 | . . . . . . . . . . . 1 . . . . . . . . . . . . . 1 Unauthorized Hacks 18 | . 2 . . . 3 2 . . . . . . . . . . . . 3 . . 4 3 1 . Terminals 13 | . 2 . . . 2 . . . . . . . . . . . . . 3 . . 4 1 1 . Track 1 | . . . . . . . . . . . . . . . . . . . . . . 1 . . . Botnet 11 | . 2 . . . 2 . . . . . . . . . . . . . 3 . . 2 1 1 . Disrupt 1 | . . . . . . . . . . . . . . . . . . . . . . 1 . . . Fabricators 1 | . . . . . . 1 . . . . . . . . . . . . . . . . . . . Haulers 1 | . . . . . . 1 . . . . . . . . . . . . . . . . . . . Repair Stations . | . . . . . . . . . . . . . . . . . . . . . . . . . . Recycling Units 3 | . . . . . . 1 . . . . . . . . . . . . . . . . 2 . . Monitor 1 | . . . . . . . . . . . . . . . . . . . . . . . 1 . . Recyclers 2 | . . . . . . 1 . . . . . . . . . . . . . . . . 1 . . Scanalyzers 1 | . . . . . 1 . . . . . . . . . . . . . . . . . . . . Extract 1 | . . . . . 1 . . . . . . . . . . . . . . . . . . . . Garrison Access . | . . . . . . . . . . . . . . . . . . . . . . . . . . Data Cores Recovered 3 | . . . . . 1 . . . . . . . . . . . . . 2 . . . . . . Used 2 | . . . . . 1 . . . . . . . . . . . . . 1 . . . . . . Hacking Detections 52 | . 5 . . . 8 8 . . . . 9 . . . . . . . 10 3 . 3 3 2 1 Full Trace Events 7 | . . . . . 2 1 . . . . 1 . . . . . . . 1 . . 1 1 . . Feedback Events . | . . . . . . . . . . . . . . . . . . . . . . . . . . Feedback Blocked . | . . . . . . . . . . . . . . . . . . . . . . . . . . Robot Schematics Acquired 8 | . . . . . . 1 . . 3 . . . . 3 . . . . 1 . . . . . . Robots Built . | . . . . . . . . . . . . . . . . . . . . . . . . . . Authchips . | . . . . . . . . . . . . . . . . . . . . . . . . . . Time . | . . . . . . . . . . . . . . . . . . . . . . . . . . Total Robot Build Rating . | . . . . . . . . . . . . . . . . . . . . . . . . . . Part Schematics Acquired 26 | . . . . . 1 . . . 14 . 1 . . 10 . . . . . . . . . . . Parts Built 2 | . . . . . . . . . . . 2 . . . . . . . . . . . . . . Authchips . | . . . . . . . . . . . . . . . . . . . . . . . . . . Time 178 | . . . . . . . . . . . 39 . . . . . . . . . . . 139 . . Total Part Build Rating 14 | . . . . . . . . . . . 14 . . . . . . . . . . . . . . Parts Repaired . | . . . . . . . . . . . . . . . . . . . . . . . . . . Time . | . . . . . . . . . . . . . . . . . . . . . . . . . . Parts Recycled . | . . . . . . . . . . . . . . . . . . . . . . . . . . Recycled Matter 247 | . . . . . . . . . . . . . . . . . . . . . . . 247 . . Retrieved Matter 247 | . . . . . . . . . . . . . . . . . . . . . . . 247 . . Retrieved Components 2 | . . . . . . . . . . . . . . . . . . . . . . . 2 . . Parts Scanalyzed 3 | . . . . . 1 . . . . . 2 . . . . . . . . . . . . . . Part Schematics Acquired 1 | . . . . . . . . . . . 1 . . . . . . . . . . . . . . Parts Damaged 2 | . . . . . 1 . . . . . 1 . . . . . . . . . . . . . . Bothacking | -11 -10 -10 -10 -9 -8 -7 -7 -7 -7 -6 -6 -6 -6 -6 -5 -5 -5 -5 -5 -5 -5 -5 -4 -3 -2 ------------ Run | Yrd Mat Min Exi Min Mat Fac Low Low Zio Pro Fac Low Low Dat Pro Fac Was Fac Ext Cet Arc Hub Fac Res Res Used RIF Installer . | . . . . . . . . . . . . . . . . . . . . . . . . . . Robots Hacked 2 | . . . . . . . . . . . . . . . . . . . 2 . . . . . . Non-combat . | . . . . . . . . . . . . . . . . . . . . . . . . . . Combat . | . . . . . . . . . . . . . . . . . . . . . . . . . . Robot Hacks Applied . | . . . . . . . . . . . . . . . . . . . . . . . . . . Manual 2 | . . . . . . . . . . . . . . . . . . . 2 . . . . . . Relay Couplers Released 4 | . . . . . . . . . . . 4 . . . . . . . . . . . . . . Machine Destruction 1 | . . . . . . . . . . . 1 . . . . . . . . . . . . . . Programmers 3 | . . . . . . . . . . . 3 . . . . . . . . . . . . . . Fabnet Peak Effective % . | . . . . . . . . . . . . . . . . . . . . . . . . . . Robots Rewired 6 | . . . . . . . . . . . . . . . . . . . 6 . . . . . . Allies Hacked 3 | . . . . . . . . . . . . . . . . . . . 3 . . . . . . Hacks Repelled . | . . . . . . . . . . . . . . . . . . . . . . . . . . Allies | -11 -10 -10 -10 -9 -8 -7 -7 -7 -7 -6 -6 -6 -6 -6 -5 -5 -5 -5 -5 -5 -5 -5 -4 -3 -2 -------- Run | Yrd Mat Min Exi Min Mat Fac Low Low Zio Pro Fac Low Low Dat Pro Fac Was Fac Ext Cet Arc Hub Fac Res Res Total Allies 30 | . . . . . . . . . . 1 1 . . . . . . . 20 5 . . 3 . . Largest Group 13 | . . . . . . . . . . 1 1 . . . . . . . 13 10 9 . 3 . . Highest-Rated Group 771 | . . . . . . . . . . 99 99 . . . . . . . 532 771 652 . 138 . . Highest-Rated Ally 159 | . . . . . . . . . . 99 99 . . . . . . . 159 159 143 . 46 . . Total Orders 7 | . . . . . . . . . . . 6 . . . . 1 . . . . . . . . . RETURN 7 | . . . . . . . . . . . 6 . . . . 1 . . . . . . . . . Ally Attacks 417 | . . . . . . . . . . 13 47 . . . . . . . 213 39 60 . 45 . . Total Damage 13645 | . . . . . . . . . . 1056 3181 . . . . . . . 5102 827 2299 . 1180 . . Kills 89 | . . . . . . . . . . 8 27 . . . . . . . 34 4 11 . 5 . . Allies Corrupted 2 | . . . . . . . . . . . . . . . . . . . 2 . . . . . . Allies Melted . | . . . . . . . . . . . . . . . . . . . . . . . . . . Intel | -11 -10 -10 -10 -9 -8 -7 -7 -7 -7 -6 -6 -6 -6 -6 -5 -5 -5 -5 -5 -5 -5 -5 -4 -3 -2 ------- Run | Yrd Mat Min Exi Min Mat Fac Low Low Zio Pro Fac Low Low Dat Pro Fac Was Fac Ext Cet Arc Hub Fac Res Res Robot Analysis Total 151 | . 5 . . . 1 . . . . . . . . 145 . . . . . . . . . . . Derelict Logs Recovered 12 | . . 2 . 1 . . 2 2 . 1 . 1 2 . 1 . . . . . . . . . . Drone Launches 7 | . . . . . . . . . . . 6 . . . . 1 . . . . . . . . . Drone Recoveries 7 | . . . . . . . . . . . 6 . . . . 1 . . . . . . . . . Exploration | -11 -10 -10 -10 -9 -8 -7 -7 -7 -7 -6 -6 -6 -6 -6 -5 -5 -5 -5 -5 -5 -5 -5 -4 -3 -2 ------------- Run | Yrd Mat Min Exi Min Mat Fac Low Low Zio Pro Fac Low Low Dat Pro Fac Was Fac Ext Cet Arc Hub Fac Res Res Turns Passed 21947 | 52 414 604 256 311 2225 1686 1141 1257 1241 707 2111 1043 509 187 787 336 263 311 2125 625 119 326 1654 752 905 Spaces Moved 13438 | 47 332 485 251 291 1174 1105 879 881 933 465 1242 683 315 106 374 217 123 153 1102 339 78 186 847 381 449 Core 124 | 13 . . . . 4 . . . . . . . . . . . . . . . . 8 96 . 3 Treads 413 | . . . . . . . . . . . . . . . . . . . . . . . 212 135 66 Legs 2 | . . . . . . . . . . . . . . . . . . . . . . . 2 . . Wheels 12479 | 34 332 485 251 291 1170 1105 879 881 933 465 1242 683 315 106 374 217 123 153 1102 339 78 178 250 246 247 Hover 287 | . . . . . . . . . . . . . . . . . . . . . . . 287 . . Flight 133 | . . . . . . . . . . . . . . . . . . . . . . . . . 133 Fastest Speed 20 | 50 90 100 100 100 95 115 115 115 130 130 115 145 145 145 130 130 130 160 130 145 145 50 45 110 20 Average Speed 129 | 78 97 100 100 100 114 123 118 129 130 130 134 145 145 145 134 132 153 160 158 151 145 141 132 143 123 Slowest Speed 700 | 90 100 115 100 100 700 130 130 130 130 130 145 145 145 145 145 145 160 160 160 160 145 350 400 162 245 Overloaded Moves . | . . . . . . . . . . . . . . . . . . . . . . . . . . Propulsion Burnouts . | . . . . . . . . . . . . . . . . . . . . . . . . . . Robots Hopped 6 | . . . . . . . . . . . . . . . . . . . . . . . . . 6 Cave-ins Triggered . | . . . . . . . . . . . . . . . . . . . . . . . . . . Exploration Rate (%) 54 | 3 44 97 62 39 74 38 66 84 85 65 42 81 53 78 50 8 98 7 96 80 87 32 22 15 17 Regions Visited 25 Branch Regions 15 Pre-discovered Areas 31 | . . 1 1 1 . . 1 . . . . . . 27 . . . . . . . . . . . Known Exits Taken 14 | . . . . . . 1 1 1 1 1 1 1 1 1 1 . . 1 . . . 1 1 1 . Unknown Exits Taken 9 | 1 1 1 1 1 1 . . . . . . . . . . . . . 1 1 1 . . . . Scrap Searched 27 | . . 1 . 1 . . 2 3 2 2 . 10 3 . 3 . . . . . . . . . . Spaces Dug 63 | . . 4 . . 11 1 . 3 . . 17 . . . . . . . . . . 3 7 4 13 Terrain Destroyed 1162 | . . 69 . . 100 113 3 5 . 3 166 . . 29 22 . 42 36 2 . . 345 82 40 105 Melee 38 | . . . . . 11 1 . 3 . . 7 . . . . . . . . . . . 2 1 13 Projectile 91 | . . . . . 12 4 . 2 . 3 30 . . . 2 . . . 1 . . 3 16 9 9 AOE 1031 | . . 69 . . 77 108 3 . . . 129 . . 29 20 . 42 36 . . . 341 64 30 83 Terrain Rammed . | . . . . . . . . . . . . . . . . . . . . . . . . . . Walls Destroyed . | . . . . . . . . . . . . . . . . . . . . . . . . . . Machines Disabled . | . . . . . . . . . . . . . . . . . . . . . . . . . . Actions | -11 -10 -10 -10 -9 -8 -7 -7 -7 -7 -6 -6 -6 -6 -6 -5 -5 -5 -5 -5 -5 -5 -5 -4 -3 -2 --------- Run | Yrd Mat Min Exi Min Mat Fac Low Low Zio Pro Fac Low Low Dat Pro Fac Was Fac Ext Cet Arc Hub Fac Res Res Total 16317 | 62 383 546 258 308 1767 1314 958 948 963 515 1501 712 336 123 624 267 158 183 1353 418 80 214 1164 504 658 Wait 1138 | . 2 17 . 13 319 113 48 19 22 19 90 7 1 . 216 34 . 7 41 33 . . 51 23 63 Move 13404 | 46 331 484 250 290 1173 1104 878 880 932 464 1241 682 314 105 373 217 122 152 1101 338 77 185 846 380 439 Hop 4 | . . . . . . . . . . . . . . . . . . . . . . . . . 4 Pick Up 228 | 9 11 5 2 3 42 4 7 7 3 2 24 5 1 2 8 5 3 2 5 8 . 2 41 21 6 Fast Attach 78 | . 1 . . . 5 11 . 1 1 . 7 . . . 2 2 1 . 3 3 . 5 26 6 4 Attach 148 | 6 2 3 1 . 26 . 1 6 1 3 13 1 1 4 4 . . . 3 . . 2 35 21 15 Detach 30 | . . . . . 7 . . . . . 1 . . 1 . . 3 . . . . . 7 3 8 Swap 116 | . 4 2 1 1 25 10 1 . . 1 16 2 1 2 2 4 3 3 8 4 1 2 12 2 9 Drop 171 | 1 3 2 4 . 30 15 9 6 4 . 20 4 . 1 3 5 7 3 8 12 . 1 20 9 4 Fire 710 | . 21 33 . 1 106 35 8 14 . 22 78 11 11 7 16 . 19 16 59 20 2 17 105 36 73 Melee 148 | . . . . . 34 22 6 15 . 4 11 . 7 1 . . . . . . . . 21 3 24 Ram . | . . . . . . . . . . . . . . . . . . . . . . . . . . Kick . | . . . . . . . . . . . . . . . . . . . . . . . . . . Crush . | . . . . . . . . . . . . . . . . . . . . . . . . . . Escape Stasis 89 | . . . . . . . . . . . . . . . . . . . 80 . . . . . 9 Rewire 53 | . 8 . . . . . . . . . . . . . . . . . 45 . . . . . . Trap . | . . . . . . . . . . . . . . . . . . . . . . . . . . Miscellaneous . | . . . . . . . . . . . . . . . . . . . . . . . . . . Route ------- -11/Scrapyard -10/Materials (discovered 3 exits: [*Mat x2] / [*Min]) -10/Mines (discovered 3 exits: [*Mat x2] / *Exi) -10/Exiles -9/Mines -8/Materials (discovered 3 exits: *Fac x3) -7/Factory (discovered 2 exits: *Fac / *Low) -7/Lower Caves -7/Lower Caves (discovered 2 exits: *Fac / *Zio) -7/Zion -6/Proximity Caves -6/Factory (discovered 3 exits: *Fac / *Low x2) -6/Lower Caves -6/Lower Caves -6/Data Miner -5/Proximity Caves -5/Factory (discovered 4 exits: Upp x2 / *Ext x2) -5/Waste -5/Factory -5/Extension (discovered 3 exits: *Fac x2 / *Cet) -5/Cetus (discovered 2 exits: *Fac / *Arc) -5/Archives (discovered 3 exits: *Fac / *Hub x2) -5/Hub_04(d) (discovered 4 exits: *Fac x4) -4/Factory (discovered 2 exits: *Res x2) -3/Research -2/Research History --------- Turn | Location | Event 10 | -11/Scrapyard | Discovered new exit (range 16) 53 | -11/Scrapyard | Entered Materials 101 | -10/Materials | Discovered new exit (range 10) 109 | -10/Materials | Discovered new exit (range 15) 223 | -10/Materials | Discovered new exit (range 18) 316 | -10/Materials | Build established: Mutant 368 | -10/Materials | Central database locked down 467 | -10/Materials | Entered Mines 546 | -10/Mines | Assembled infested the area 779 | -10/Mines | Learned Materials non-interactive machine intel 789 | -10/Mines | Learned location of Storage (-9) 943 | -10/Mines | Discovered new exit (range 4) 967 | -10/Mines | Discovered new exit (range 3) 1058 | -10/Mines | Learned Materials emergency access door positions 1066 | -10/Mines | Deemed a non-threat by the Exiles lab entrance 1067 | -10/Mines | Discovered new exit (range 5) 1071 | -10/Mines | Entered Exiles 1096 | -10/Exiles | Met 8R-AWN 1112 | -10/Exiles | Met EX-HEX 1145 | -10/Exiles | Met EX-BIN 1156 | -10/Exiles | Aligned with FarCom system 1157 | -10/Exiles | Given EX-Vault access code 1180 | -10/Exiles | Opened EX-Vault 1190 | -10/Exiles | Found YOLO Cannon 1212 | -10/Exiles | Warned to stay clear of 0b10 Research branches 1239 | -10/Exiles | Met EX-DEC 1249 | -10/Exiles | Learned location of Zion (-7) 1267 | -10/Exiles | Build established: Scavenger-Mutant 1316 | -10/Exiles | Discovered new exit (range 14) 1327 | -10/Exiles | Left Exiles lab with YOLO Cannon 1327 | -10/Exiles | Entered Mines 1350 | -9/Mines | Received a Rocket Launcher from a helpful Derelict 1431 | -9/Mines | Discovered new exit (range 9) 1503 | -9/Mines | Found a damaged Exp. Sensor Array with a note attached 1505 | -9/Mines | Found Prototype Device 1638 | -9/Mines | Entered Materials 1638 | -8/Materials | Evolved 4 slots: Utility x3, Weapon x1 1640 | -8/Materials | Loaded intel: 30 non-interactive machine locations 1643 | -8/Materials | Identified Exp. Sensor Array 1932 | -8/Materials | Build established: Scavenger-Tank 2185 | -8/Materials | Discovered new exit (range 9) 2762 | -8/Materials | Destroyed 9 combat bots 2912 | -8/Materials | Core integrity fell below 50% 2932 | -8/Materials | Discovered new exit (range 13) 2982 | -8/Materials | Lost 9 parts (1p4n1u3w) 3233 | -8/Materials | Discovered new exit (range 10) 3289 | -8/Materials | Build established: Scavenger-Mutant 3562 | -8/Materials | Central database locked down 3863 | -8/Materials | Entered Factory 3863 | -7/Factory | Evolved 2 slots: Utility x2 4230 | -7/Factory | Build established: Mutant 5290 | -7/Factory | Discovered new exit (range 15) 5310 | -7/Factory | Identified exit to Lower Caves 5407 | -7/Factory | Discovered new exit (range 5) 5430 | -7/Factory | Identified exit to Factory 5549 | -7/Factory | Entered Lower Caves 5568 | -7/Lower Caves | Found Prototype Device 5679 | -7/Lower Caves | Learned location of 1 exit from Proximity Caves 5756 | -7/Lower Caves | Encountered a Warlord checkpoint 5849 | -7/Lower Caves | Identified Heart of Steel 5941 | -7/Lower Caves | Attracted the attention of an 0b10 checkpoint 5982 | -7/Lower Caves | Discovered new exit (range 8) 5990 | -7/Lower Caves | Identified exit to Lower Caves 6219 | -7/Lower Caves | Spotted B-75 Beast 6356 | -7/Lower Caves | Destroyed B-75 Beast 6690 | -7/Lower Caves | Entered another Lower Caves area 6715 | -7/Lower Caves | Discovered exit to Factory (range 4) 6955 | -7/Lower Caves | Learned Factory trap positions 6955 | -7/Lower Caves | Learned Factory security intel 6955 | -7/Lower Caves | Learned Armory security intel 6955 | -7/Lower Caves | Learned Factory garrison access intel 7028 | -7/Lower Caves | Found Alien Artifact 7056 | -7/Lower Caves | Encountered a Warlord checkpoint 7120 | -7/Lower Caves | Attracted the attention of an 0b10 checkpoint 7648 | -7/Lower Caves | Learned Factory terminal intel 7733 | -7/Lower Caves | Discovered new exit (range 10) 7747 | -7/Lower Caves | Identified exit to Zion 7947 | -7/Lower Caves | Entered Zion 7983 | -7/Zion | Received a visual enhancement algorithm 8005 | -7/Zion | System corruption cleaned by Quarantine Array 8231 | -7/Zion | Learned Factory emergency access door positions 8298 | -7/Zion | Found CR-A16's Pointy Stick 8598 | -7/Zion | Build established: Gladiator 8608 | -7/Zion | Given the Hacking Drone Bay 8609 | -7/Zion | Found Prototype Device 8720 | -7/Zion | Rebuked by Imprinter 8914 | -7/Zion | Build established: Mutant 9074 | -7/Zion | Discovered new exit (range 14) 9091 | -7/Zion | Identified exit to Proximity Caves 9188 | -7/Zion | Entered Proximity Caves 9326 | -6/Proximity Caves | Spotter reported a threat 9405 | -6/Proximity Caves | Spotter reported a threat 9457 | -6/Proximity Caves | Heart of Steel transformed into Warbot 9895 | -6/Proximity Caves | Entered Factory 9895 | -6/Factory | Accompanied by 1 ally (Warbot) 9895 | -6/Factory | Evolved 2 slots: Power x1, Utility x1 9896 | -6/Factory | Loaded intel: 79 trap records 9896 | -6/Factory | Identified Hacking Drone Bay 9899 | -6/Factory | Loaded intel: 26 terminal locations 9900 | -6/Factory | Loaded intel: 4 garrison access locations 10090 | -6/Factory | Build established: Tank 10245 | -6/Factory | Search patrols dispatched 10370 | -6/Factory | Identified Dimensional Node Initializer 10456 | -6/Factory | Fabricated Railgun (x2) 10595 | -6/Factory | First assault squad dispatched 10618 | -6/Factory | Garrison activated, responded to threat 10754 | -6/Factory | YOLO Cannon suddenly exploded 10755 | -6/Factory | Core integrity fell below 50% 10785 | -6/Factory | Lost 5 parts (1p3u1w) 10921 | -6/Factory | Cargo convoy interrupted 11075 | -6/Factory | Build established: Skirmisher 11227 | -6/Factory | Discovered new exit (range 4) 11278 | -6/Factory | Identified exit to Factory 11733 | -6/Factory | Identified exit to Lower Caves 11857 | -6/Factory | Destroyed 15 combat bots 12006 | -6/Factory | Entered Lower Caves 12234 | -6/Lower Caves | Encountered a Warlord checkpoint 12322 | -6/Lower Caves | Build established: Scavenger-Tank 12342 | -6/Lower Caves | Learned Factory stockpile data 12469 | -6/Lower Caves | Discovered new exit (range 9) 13046 | -6/Lower Caves | Identified exit to Lower Caves 13049 | -6/Lower Caves | Entered another Lower Caves area 13173 | -6/Lower Caves | Build established: Tank 13175 | -6/Lower Caves | Learned Factory non-interactive machine intel 13551 | -6/Lower Caves | Discovered new exit (range 6) 13554 | -6/Lower Caves | Attracted the attention of an 0b10 checkpoint 13557 | -6/Lower Caves | Identified exit to Data Miner 13558 | -6/Lower Caves | Entered Data Miner 13558 | -6/Data Miner | Discovered new exit (range 6) 13566 | -6/Data Miner | Identified exit to Proximity Caves 13589 | -6/Data Miner | Met Data Miner 13617 | -6/Data Miner | Learned location of Section 7 (-2) 13617 | -6/Data Miner | Acquired the access code to Warlord's prototype stash 13641 | -6/Data Miner | Received God Mode back door access code from Data Miner 13669 | -6/Data Miner | Destroyed Data Miner 13671 | -6/Data Miner | Interfaced with the Data Conduit 13674 | -6/Data Miner | Found Prototype Hackware 13745 | -6/Data Miner | Entered Proximity Caves 13909 | -5/Proximity Caves | Attracted the attention of an 0b10 checkpoint 13960 | -5/Proximity Caves | Build established: Gunner 13984 | -5/Proximity Caves | Spotted B-75 Beast 13998 | -5/Proximity Caves | Core integrity fell below 20% 14002 | -5/Proximity Caves | Destroyed B-75 Beast 14180 | -5/Proximity Caves | Discovered exit to Factory (range 13) 14384 | -5/Proximity Caves | Received a Behemoth hack from an annoying Tinkerer 14532 | -5/Proximity Caves | Entered Factory 14532 | -5/Factory | Evolved 2 slots: Utility x1, Weapon x1 14533 | -5/Factory | Identified exit to Upper Caves 14533 | -5/Factory | Identified exit to Extension 14535 | -5/Factory | Loaded intel: 290 machine locations 14536 | -5/Factory | Loaded intel: 238 non-interactive machine locations 14868 | -5/Factory | Discovered exit to Extension (range 12) 14868 | -5/Factory | Sucked down chute 14868 | -5/Factory | Entered Waste 14903 | -5/Waste | Spotted C-40 Crusher 14909 | -5/Waste | Destroyed C-40 Crusher 14910 | -5/Waste | Spotted C-40 Crusher 14913 | -5/Waste | Destroyed C-40 Crusher 14916 | -5/Waste | Spotted C-40 Crusher 14923 | -5/Waste | Spotted C-40 Crusher 14923 | -5/Waste | Destroyed C-40 Crusher 14930 | -5/Waste | Destroyed C-40 Crusher 14953 | -5/Waste | Build established: Infiltrator-Tank 14963 | -5/Waste | Spotted C-40 Crusher 14966 | -5/Waste | Destroyed C-40 Crusher 14973 | -5/Waste | Initialized slip node 14981 | -5/Waste | Found Damper Plating 14983 | -5/Waste | Spotted C-40 Crusher 15110 | -5/Waste | Discovered new exit (range 13) 15131 | -5/Waste | Entered Factory 15132 | -5/Factory | Loaded intel: 257 machine locations 15429 | -5/Factory | Discovered exit to Extension (range 10) 15442 | -5/Factory | Entered Extension 15443 | -5/Extension | Loaded intel: 41 machine locations 15544 | -5/Extension | Rescued a captive Derelict 15657 | -5/Extension | Build established: Scavenger-Tank 16132 | -5/Extension | Spotted B-75 Beast 16137 | -5/Extension | Befriended a Behemoth using the annoying Tinkerer's hack 16143 | -5/Extension | Spotted B-75 Beast 16144 | -5/Extension | Befriended a Behemoth using the annoying Tinkerer's hack 16304 | -5/Extension | Build established: Scavenger-Gunner 16465 | -5/Extension | Identified Deep Network Scanner 16472 | -5/Extension | Rescued a captive Derelict 16530 | -5/Extension | Rescued a captive Derelict 16690 | -5/Extension | Rescued a captive Derelict 16724 | -5/Extension | Rescued a captive Derelict 16724 | -5/Extension | Rescued a captive Derelict 16771 | -5/Extension | Build established: Hacker-Gunner 16798 | -5/Extension | Discovered new exit (range 3) 16841 | -5/Extension | Rescued a captive Derelict 16842 | -5/Extension | Rescued a captive Derelict 16869 | -5/Extension | Rescued a captive Derelict 16870 | -5/Extension | Rescued a captive Derelict 16934 | -5/Extension | Rescued a captive Derelict 16942 | -5/Extension | First assault squad dispatched 17009 | -5/Extension | Rescued A7 17109 | -5/Extension | Disrupted transfer network 17518 | -5/Extension | Discovered new exit (range 16) 17521 | -5/Extension | Discovered new exit (range 14) 17567 | -5/Extension | Entered Cetus 17567 | -5/Cetus | Accompanied by 5 allies (A7) 17568 | -5/Cetus | Loaded intel: 24 machine locations 17572 | -5/Cetus | Acquired a Cetus Manufacturing Module code from A7 17587 | -5/Cetus | Spotted Cetus Guard 17587 | -5/Cetus | Spotted Cetus Guard 17591 | -5/Cetus | Spotted Cetus Guard 17591 | -5/Cetus | Allies destroyed Cetus Guard 17592 | -5/Cetus | Spotted Cetus Guard 17594 | -5/Cetus | Destroyed Cetus Guard 17598 | -5/Cetus | Allies destroyed Cetus Guard 17611 | -5/Cetus | Destroyed Cetus Guard 17702 | -5/Cetus | Started Cetus Manufacturing Module 17721 | -5/Cetus | Escorted A7 to Cetus Mainframe 17727 | -5/Cetus | Manufactured an Enhanced Grunt 17752 | -5/Cetus | Manufactured an Enhanced Grunt 17777 | -5/Cetus | Manufactured an Enhanced Grunt 17802 | -5/Cetus | Manufactured an Enhanced Grunt 17827 | -5/Cetus | Manufactured an Enhanced Grunt 17864 | -5/Cetus | Discovered new exit (range 16) 17890 | -5/Cetus | Spotted Cetus Guard 17891 | -5/Cetus | Spotted Cetus Guard 17892 | -5/Cetus | Destroyed Cetus Guard 17894 | -5/Cetus | Spotted Cetus Guard 17898 | -5/Cetus | Spotted Cetus Guard 17899 | -5/Cetus | Allies destroyed Cetus Guard 17908 | -5/Cetus | Destroyed Cetus Guard 17908 | -5/Cetus | Destroyed Cetus Guard 17922 | -5/Cetus | Discovered new exit (range 15) 17932 | -5/Cetus | Met Revision 17 18040 | -5/Cetus | Found a strange terminal 18192 | -5/Cetus | Entered Archives 18192 | -5/Archives | Accompanied by 9 allies (A7) 18193 | -5/Archives | Loaded intel: 8 machine locations 18197 | -5/Archives | Received a hacking code to weaken MAIN.C 18210 | -5/Archives | Met Zhirov 18216 | -5/Archives | Reinforcements dispatched to Archives 18219 | -5/Archives | Unable to access archive contents 18221 | -5/Archives | Discovered new exit (range 16) 18235 | -5/Archives | Read partially decrypted archive contents 18246 | -5/Archives | Build established: Scavenger-Tank 18257 | -5/Archives | Discovered new exit (range 16) 18261 | -5/Archives | Reinforcements dispatched to Archives 18263 | -5/Archives | Zhirov warped through subspace 18281 | -5/Archives | Zhirov detonated Archives 18289 | -5/Archives | Discovered new exit (range 15) 18311 | -5/Archives | Entered Hub_04(d) 18312 | -5/Hub_04(d) | Loaded intel: 101 machine locations 18312 | -5/Hub_04(d) | Lost 8 allies 18367 | -5/Hub_04(d) | Identified exit to Factory 18564 | -5/Hub_04(d) | Network Hub disabled 18589 | -5/Hub_04(d) | Spotted Lightning 18598 | -5/Hub_04(d) | Spotted Lightning 18608 | -5/Hub_04(d) | System corruption reached 10% 18610 | -5/Hub_04(d) | Spotted Lightning 18611 | -5/Hub_04(d) | First assault squad dispatched 18613 | -5/Hub_04(d) | Spotted Lightning 18622 | -5/Hub_04(d) | Network Hub disabled 18624 | -5/Hub_04(d) | Released all parts (6) 18631 | -5/Hub_04(d) | Core integrity fell below 50% 18635 | -5/Hub_04(d) | Released all parts (2) 18637 | -5/Hub_04(d) | Entered Factory 18637 | -4/Factory | Evolved 2 slots: Propulsion x2 18638 | -4/Factory | Loaded intel: 266 machine locations 18665 | -4/Factory | Lost 12 parts (1p2n6u3w) 18874 | -4/Factory | Build established: Mutant 18887 | -4/Factory | First assault squad dispatched 19037 | -4/Factory | Found Exp. Signal Interpreter 19189 | -4/Factory | Found Thermal Barrier 19202 | -4/Factory | Allied Derelicts emerged from ambush trap array 19504 | -4/Factory | Discovered new exit (range 9) 19511 | -4/Factory | Identified exit to Research 19584 | -4/Factory | Lost 3 parts (2u1w) 19753 | -4/Factory | Garrison activated, responded to threat 19882 | -4/Factory | Destroyed 10 combat bots 19934 | -4/Factory | Lost 10 parts (2n1u7w) 20006 | -4/Factory | Lost 4 parts (2p2n) 20078 | -4/Factory | Core integrity fell below 50% 20234 | -4/Factory | Discovered exit to Research (range 10) 20256 | -4/Factory | Spotted B-86 Titan 20291 | -4/Factory | Entered Research 20291 | -3/Research | Evolved 2 slots: Utility x1, Weapon x1 20292 | -3/Research | Loaded intel: 109 machine locations 20491 | -3/Research | Revision forces began assault on 0b10 20561 | -3/Research | Met up with Revision 17++ 20595 | -3/Research | Destroyed 8 combat bots 20595 | -3/Research | Lost 8 parts (2p3u3w) 20672 | -3/Research | Found Quantum Capacitor 20688 | -3/Research | Found Exp. ECM Suite 20769 | -3/Research | Found Fusion Bomb Launcher 20848 | -3/Research | Build established: Scavenger-Gunner 20991 | -3/Research | Research terminal network offline 21009 | -3/Research | Discovered new exit (range 7) 21016 | -3/Research | Identified exit to Research 21043 | -3/Research | Entered another Research area 21043 | -2/Research | Evolved 2 slots: Power x1, Utility x1 21044 | -2/Research | Loaded intel: 118 machine locations 21304 | -2/Research | Build established: Scavenger-Tank 21676 | -2/Research | Lost 3 parts (1n1u1w) 21679 | -2/Research | Spotted B-90 Cyclops 21793 | -2/Research | Intercept squad dispatched 21800 | -2/Research | Spotted Tracker 21801 | -2/Research | Spotted Tracker 21814 | -2/Research | Destroyed Tracker 21826 | -2/Research | First assault squad dispatched 21841 | -2/Research | Destroyed Tracker 21843 | -2/Research | Spotted Combat Programmer 21858 | -2/Research | Lost 7 parts (2p1n1u3w) 21858 | -2/Research | System corruption reached 10% 21859 | -2/Research | Spotted Combat Programmer 21864 | -2/Research | Destroyed Combat Programmer 21905 | -2/Research | Core integrity fell below 50% 21930 | -2/Research | Core integrity fell below 20% 21948 | -2/Research | Destroyed by H-81 Overseer with Heavy Linear Accelerator Last Messages --------------- 21908_ Field strength at 71. 21909_ Field strength at 59. 21910_ Field strength at 53. 21911_ Field strength at 36. 21912_ Field strength at 30. 21913_ Field strength at 18. 21914_ Field strength at 12. 21915_ Stasis field depleted. 21916_ System corrupted: Matter fused (-8). 21917_ EMDS Slug penetrates Wall. 21922_ Adv. Coolant Injector destroyed. 21924_ Penetrated by EMDS Slug. 21927_ U-05 Engineer builds a Wall. 21933_ Acquired Imp. Remote Datajack. 21935_ JFQ=FJZBZCLOP&QBBEF6|,BB>UP8Y KG4 21938_ Penetrated by EMDS Slug. 21940_ S-43 Plague destroyed. 21940_ Acquired 32 matter. 21946_ EMDS Slug penetrates Wall. 21946_ Acquired 70 matter. Map ----- +----------------------------------------------------+ | ?????????????????????????????????????""""????????? | | ?????????????????????????????????????????????????? | | ?????????????????????????????????????????????????? | | ?????????????????????????????????????????????????? | | ?????????????????????????????????????????????????? | | ?????????????????????????????????????????????????? | | ?????????????????????????????????????????????????? | | ?????????????????????????????????????????????????? | | ?????????????????????????????????????????????????? | | ?????????????????????????????????????????????????? | | ?????????????????????????????????????????????????? | | ???????????????????????????????????"""???????????? | | ?????????????????????????########?w"""???????????? | | ?????????????????????????# #??"""???????????? | | ?????????????????????????# #????????????????? | | ?????????????????????????# #????????????????? | | ?????????????????????????# #????????????????? | | ????????????????########## #????????????????? | | ????????????????#! ## #????????###?????? | | ????????????????# ####+####???######"###???? | | ????????????????# !!! / * =#??????# ! "#???? | | ????????????????# !!! ###" #??????# ##?T?? | | ????????????????# !! ####w###????# #"""?? | | ????????????????########## ###### #????? | | ?????????????????######### # #"""?? | | ???????????????# @ H + ] #????? | | ?????????? ###### Y # ] #"""?? | | ?????????????????????????# % s #### # #????? | | ?????????????????????????###p###### # [[[ #??""? | | ???????????????????????????# ==*# + [[ #??""? | | ???????????????????????????# % =**#s# [[ #??"?? | | ???????????????????????????# =* # #########??""" | | ???????????????????????????# c # #??????????""" | | ???????????????????????????# # #????????????? | | ??????????"""?"""??????????# # #????????????? | | ??????????"""T"""??????????###+#### ###????##????? | | ??????????????????????######## ## ####T #####? | | ??????????????????????# # ## ## | | ??????????????????????# + c | | ??????????????????????# [ # ## ## | | ??????????????????????# # ##* ####### #? | | ??????????????????????# ?# ####+#####?????? #? | | ??????????????????????# ?# #?# !#????????? | | ??????????????????????##+##??# #?# #????????? | | ?? ?????????????????# #?### ### #????????? | | ?# #????????????????# #?# # = #????????? | | ?# +?????????????####/### T" # #????????? | | ?# #?????????????# / "" # #????????? | | ?# #?????????????# ## #+######????????? | | ?# ^#?????????????# ## # #?????????????? | +----------------------------------------------------+ Best States ------------- Heat Dissipation 113 Coolant Potential 100 Energy Generation 55 Energy Capacity 1250 Matter Stores 300 Matter Capacity 300 Sight Range 16 Robot Scan Range 18 Terrain Scan Range 20 Terrain Scan Density 10 ECM Strength 3 Jamming Range 14 Base Temperature (-) 200 Armor Coverage 1600 Resistance: KI 30 Resistance: TH 50 Resistance: EM 90 Core Shielding 20 Power Shielding 66 Propulsion Shielding 66 Weapon Shielding 66 Point Defense Rating 240 Phase Shifting 10 Evasion (%) 66 Targeting Accuracy 6 Melee Accuracy 6 Target Analysis 6 Core Analysis 6 Recoil Reduction 4 Particle Charging 20 Offensive Hacking 25 Item Schematics ----------------- Deuterium Engine | -8/Materials | Extracted Imp. Cooling System | -7/Zion | Archive Hvy. Pick | -7/Zion | Archive Imp. Particle Charger | -7/Zion | Archive Transmission Jammer | -7/Zion | Archive Hvy. Plasma Cannon | -7/Zion | Archive Dynamic Insulation System | -7/Zion | Archive Adv. Shield Generator | -7/Zion | Archive Imp. Field Recycling Unit | -7/Zion | Archive Adv. Sensor Array | -7/Zion | Archive Kinecellerator | -7/Zion | Archive Force Field | -7/Zion | Archive Corruption Screen | -7/Zion | Archive Imp. Titanium Leg | -7/Zion | Archive Adv. Field Recycling Unit | -7/Zion | Archive Adv. Beam Rifle | -6/Factory | Scanalyzed Combat Drone Bay | -6/Data Miner | Free Lgt. Regenerative Plating | -6/Data Miner | Free Enh. Armored Leg | -6/Data Miner | Free Imp. Thermal Defense Suite | -6/Data Miner | Free Hvy. Gatling Laser | -6/Data Miner | Free Impulse Thruster | -6/Data Miner | Free Adv. Cryofiber Web | -6/Data Miner | Free Railgun | -6/Data Miner | Free Com. HERF Cannon | -6/Data Miner | Free Mic. Antimatter Reactor | -6/Data Miner | Free Robot Schematics ------------------ L-41 Fighter | -7/Factory | Hacked B-48 Gladiator | -7/Zion | Archive W-25 Informer | -7/Zion | Archive S-27 Virus | -7/Zion | Archive E-15 Imp | -6/Data Miner | Free H-66 Slayer | -6/Data Miner | Free Y-64 Sentinel | -6/Data Miner | Free X-72 Disruptor | -5/Extension | Hacked Fabricated ------------ Railgun | x2 | -6/Factory | Preloaded Alien Tech Used ----------------- Dimensional Node Initializer Achievements -------------- Batter Up Challenges ------------ None Game ------ Seed MetaConcussiveDrivehammer Manual? 0 Play Time 05:20:13 Cumulative 216.0 hours Start 2024.09.28 @ 19:56:08 End 2024.09.29 @ 05:32:44 Sessions 7 Manual Loads 0 Difficulty Rogue Special Mode None Game No. 177 Rogue 168 Adventurer 9 Explorer 0 Win Type - Total 1 Types 1/0/0/0/0/0/0/0/0 Lore% 72 Gallery% 71 Achievement% 58 Wizard Run 0 Options --------- Layout 1 ASCII 0 Keyboard 0 Movement Numpad Keybinds 0 Fullscreen 1 Font 24/Smallcaps Map View 50x35 Zoom Use 0% Tactical HUD 1 Map Filters NONE Filters NONE Steam 1 RUN: 55ff93df-6d08-47e4-b975-c6ea73d8b7bd